bitfinex/quotes_ETHUSD_20241231
["timestamp","ask_amount","ask_price","bid_price","bid_amount"]
[1735635644203,2.86388341,3387.7,3386.0,6.42476641]
[1735635644204,2.36113,3388.2,3387.2,0.7999]
[1735635645106,2.361,3388.4,3387.2,0.7999]
[1735635645271,2.36106,3388.3,3387.2,0.7999]
[1735635645696,2.36106,3388.3,3387.3,0.7551]
[1735635645906,5.22479341,3388.6,3387.6,0.55]
[1735635646117,2.36091,3388.6,3387.7,1.82261]
[1735635646321,2.36072,3388.8,3387.7,1.82261]
[1735635646605,2.36087,3388.6,3387.7,1.82261]
[1735635647489,3.0,3388.8,3387.7,1.82261]
[1735635648167,3.0,3388.5,3387.7,1.82261]
[1735635649105,5.36094,3388.5,3387.7,1.82261]
[1735635649771,2.3606,3389.0,3387.9,0.7551]
[1735635650306,2.3606,3389.0,3388.0,0.7551]
[1735635651410,5.3606,3389.0,3388.0,0.7551]
[1735635653046,2.86388341,3388.8,3388.0,0.7551]
[1735635653307,3.0,3388.4,3388.0,0.7551]
[1735635653527,3.0,3388.7,3388.0,0.7551]
[1735635653767,2.36097,3388.5,3388.0,0.7551]
[1735635654973,2.36108,3388.3,3388.0,0.7551]
[1735635655401,3.0,3388.4,3388.0,0.7551]
[1735635656848,5.361,3388.4,3388.0,0.7551]
[1735635657344,3.0,3388.4,3387.0,2.36197]
[1735635657475,3.0,3388.4,3387.1,1.493707]
[1735635657794,3.0,3388.4,3387.2,0.7551]
[1735635657981,2.36107,3388.3,3387.2,0.7551]
[1735635658602,3.0,3388.4,3387.2,0.7551]
[1735635658918,3.0,3388.4,3387.4,3.11679]
[1735635659121,3.0,3388.4,3387.6,0.7551]
[1735635659283,3.0,3388.4,3387.7,0.778]
[1735635659484,5.22460341,3388.8,3387.7,0.778]
[1735635659922,3.0,3388.7,3387.7,2.36146]
[1735635660079,3.0,3388.7,3387.8,0.778]
[1735635660284,5.36079,3388.7,3387.8,0.9751679]
[1735635660517,5.36079,3388.7,3387.8,0.778]
[1735635661018,3.0,3388.7,3387.8,0.778]
[1735635661685,2.86388341,3388.8,3387.8,0.778]
[1735635662020,2.36087,3388.6,3387.8,0.778]
[1735635662385,2.36095,3388.5,3387.8,0.778]
[1735635662613,2.361,3388.4,3387.8,0.778]
[1735635662929,3.0,3388.7,3387.8,0.778]
[1735635663076,3.0,3388.1,3386.8,0.778]
[1735635663284,3.0,3388.1,3387.0,0.778]
[1735635663691,3.0,3388.1,3387.1,0.778]
[1735635663895,5.36122,3388.1,3387.1,0.778]
[1735635664093,2.36056,3389.1,3387.1,0.778]
[1735635664094,2.36148,3387.7,3387.1,0.778]
[1735635664283,3.0,3387.8,3387.1,0.778]
[1735635664479,2.36161,3387.6,3387.1,0.778]
[1735635664784,2.36155,3387.6,3387.1,0.778]
[1735635664985,3.0,3387.5,3387.1,0.778]
[1735635665223,3.0,3387.5,3386.8,0.778]
[1735635666589,2.36178,3387.3,3386.8,0.778]
[1735635666985,5.36163,3387.5,3386.8,0.778]
[1735635668709,3.0,3387.5,3386.8,0.778]
[1735635669023,3.0,3387.5,3386.8,1.7378]
[1735635669187,3.0,3387.5,3386.9,0.778]
[1735635669623,2.86388341,3387.9,3386.9,0.778]
[1735635670189,2.46553073,3388.1,3387.2,0.778]
[1735635670430,2.46553073,3388.1,3387.3,0.778]
[1735635670582,2.46553073,3388.1,3387.4,0.313976]
[1735635670786,2.46553073,3388.3,3387.5,0.778]
[1735635672133,5.361,3388.4,3387.5,0.778]
[1735635675628,3.0,3388.4,3387.5,0.778]
[1735635676041,3.0,3388.4,3387.6,0.313969]
[1735635676223,5.36101,3388.4,3387.6,0.313969]
[1735635677027,5.36101,3388.4,3387.7,0.8013]
[1735635677605,3.0,3388.4,3387.7,0.8013]
[1735635677794,2.36087,3388.6,3387.7,0.8013]
[1735635677991,3.0,3388.7,3387.8,0.8013]
[1735635678432,2.46553073,3388.8,3387.9,0.8013]
[1735635678937,2.36058,3389.0,3387.9,0.8013]
[1735635679798,5.36058,3389.0,3387.9,0.8013]
[1735635680131,5.36058,3389.0,3388.1,0.8013]
[1735635680333,3.0,3389.0,3388.1,0.8013]
[1735635680998,2.86388341,3388.8,3388.1,0.8013]
[1735635681194,2.36092,3388.5,3388.1,0.8013]
[1735635682097,3.0,3388.7,3388.1,0.8013]
[1735635682297,2.36086,3388.6,3388.1,0.8013]
[1735635683122,2.36108,3388.3,3388.1,0.8013]
[1735635685137,2.36108,3388.3,3387.8,0.8013]
[1735635686940,0.7549,3388.7,3387.2,8.82]
[1735635686941,2.86388341,3388.2,3387.2,8.82]
[1735635687143,2.36162,3387.5,3387.4,0.8013]
[1735635687304,2.36162,3387.5,3386.7,0.8013]
[1735635687647,2.3617,3387.4,3386.7,1.87037118]
[1735635688816,2.86388341,3387.6,3386.7,1.87037118]
[1735635689018,2.46553073,3387.9,3386.8,0.8013]
[1735635689019,5.32941414,3387.9,3386.8,0.8013]
[1735635689206,2.46553073,3387.9,3387.0,0.8013]
[1735635689575,2.46553073,3387.9,3387.2,2.36182]
[1735635689778,3.70708356,3388.4,3387.6,0.7532]
[1735635689779,2.46553073,3388.2,3387.6,0.7532]
[1735635689905,2.46553073,3388.2,3387.7,0.7532]
[1735635690103,2.46553073,3388.2,3387.9,0.7532]
[1735635690306,2.46553073,3388.2,3388.0,9.37]
[1735635690581,2.46553073,3388.2,3388.1,12.4844]
[1735635690709,7.97270795,3389.4,3388.1,12.4844]
[1735635690710,2.36059,3389.0,3388.1,2.00164]
[1735635691075,2.36059,3389.0,3388.1,0.7532]
[1735635691952,5.32941414,3389.1,3388.3,0.7532]
[1735635692107,2.86388341,3389.1,3388.3,0.7532]
[1735635692307,2.36066,3388.9,3388.3,0.7532]
[1735635692507,3.11737,3389.0,3388.3,0.7532]
[1735635692770,3.0,3388.7,3387.6,0.7532]
[1735635692982,3.0,3388.7,3387.6,1.86120755]
[1735635693286,2.36108,3388.3,3387.6,10.68120755]
[1735635693409,3.42405089,3388.4,3387.6,0.7532]
[1735635693774,2.36127,3388.0,3387.6,0.7532]
[1735635694805,2.36109,3388.3,3387.6,0.7532]
[1735635695010,4.18085089,3388.4,3387.6,0.7532]
[1735635695011,2.36113,3388.2,3387.6,0.7532]
[1735635695670,4.18085089,3388.4,3387.6,0.7532]
[1735635696644,2.3612,3388.2,3387.6,0.7532]
[1735635697275,2.36156,3387.6,3386.9,0.7532]
[1735635697525,2.36156,3387.6,3386.9,1.71052]
[1735635698088,2.36156,3387.6,3386.9,0.7532]
[1735635698435,3.0,3387.9,3386.9,0.7532]
[1735635698745,3.42405089,3388.0,3386.9,0.7532]
[1735635698872,2.46553073,3388.2,3387.0,8.82]
[1735635699239,2.46553073,3388.2,3387.4,0.7532]
[1735635699364,2.46553073,3388.2,3387.6,9.5732]
[1735635699568,2.46553073,3388.5,3387.6,9.5732]
[1735635700305,2.46553073,3388.5,3387.7,0.7532]
[1735635700834,2.36081,3388.7,3387.7,0.7532]
[1735635701032,2.36081,3388.7,3387.8,1.193481]
[1735635701839,4.82616073,3389.0,3388.0,0.7532]
[1735635702137,2.36065,3388.9,3388.0,0.7532]
[1735635702912,5.36051,3389.1,3388.1,8.82]
[1735635703212,2.46553073,3389.2,3388.4,0.7532]
[1735635704002,5.4495963,3389.4,3388.4,0.7532]
[1735635704003,4.82589073,3389.4,3388.4,0.7532]
[1735635704205,4.82589073,3389.4,3388.5,8.82]
[1735635704583,2.46553073,3389.4,3388.5,8.82]
[1735635704812,2.36045,3389.2,3388.5,8.82]
[1735635705009,2.36045,3389.2,3388.5,9.8966652]
[1735635707290,2.3603,3389.4,3388.6,0.8001]
[1735635707490,2.36039,3389.3,3388.6,0.8001]
[1735635707812,2.36045,3389.2,3388.6,0.8001]
[1735635709327,2.3603,3389.4,3388.6,0.8001]
[1735635709624,2.3603,3389.4,3388.6,1.86977652]
[1735635709834,2.36039,3389.3,3388.6,1.86977652]
[1735635710428,3.0,3389.5,3388.6,1.86977652]
[1735635710609,2.36024,3389.5,3388.6,1.86977652]
[1735635711085,2.36024,3389.5,3388.7,0.8001]
[1735635711303,2.36024,3389.5,3388.8,0.18697765]
[1735635711905,3.0,3389.5,3387.9,3.0]
[1735635712321,2.86328046,3389.4,3387.9,3.0]
[1735635712487,2.36044,3389.2,3388.0,2.36121]
[1735635712693,2.36051,3389.1,3388.1,1.418121]
[1735635713511,2.36065,3388.9,3388.0,8.82]
[1735635713717,0.7692,3389.2,3388.0,8.82]
[1735635713718,2.86328046,3388.8,3388.0,8.82]
[1735635713944,3.0,3388.7,3388.0,8.82]
[1735635714140,2.36114,3388.2,3387.4,1.21569346]
[1735635714340,2.86328046,3388.5,3387.4,2.48981682]
[1735635714652,2.36115,3388.2,3387.4,1.27412336]
[1735635714951,2.36115,3388.2,3387.5,0.635]
[1735635716144,2.86328046,3388.5,3387.5,0.635]
[1735635716314,2.361,3388.4,3387.5,0.635]
[1735635716515,2.36086,3388.6,3387.6,0.635]
[1735635718510,2.36086,3388.6,3387.7,0.55]
[1735635719455,2.36086,3388.6,3387.8,0.635]
[1735635720321,2.361,3388.4,3387.8,0.635]
[1735635720522,5.22410046,3388.7,3387.8,0.635]
[1735635720716,5.22410046,3388.7,3387.8,0.96459123]
[1735635720945,2.36082,3388.7,3387.9,0.635]
[1735635721344,3.0,3388.9,3388.0,0.55]
[1735635721546,4.82590073,3389.3,3388.0,0.55]
[1735635721747,2.46553073,3389.3,3388.4,0.55]
[1735635721922,2.46553073,3389.3,3388.6,0.635]
[1735635722748,5.22345046,3389.6,3388.6,0.635]
[1735635723546,2.36029,3389.5,3388.6,0.635]
[1735635723946,2.86328046,3389.6,3388.6,0.635]
[1735635724147,2.36054,3389.1,3388.6,0.635]
[1735635724314,2.36067,3388.9,3388.6,0.635]
[1735635724516,2.361,3388.4,3388.0,0.635]
[1735635725129,3.7605,3388.7,3388.0,0.635]
[1735635725390,2.36097,3388.5,3388.0,0.635]
[1735635725926,3.7605,3388.7,3388.0,0.635]
[1735635726130,0.65822212,3388.6,3388.0,0.635]
[1735635726331,2.36086,3388.6,3388.0,0.635]
[1735635726833,5.86062454,3390.3,3388.8,0.635]
[1735635727033,5.10882454,3390.3,3389.1,4.185]
[1735635727735,7.972105,3390.3,3389.1,0.635]
[1735635727941,10.331795,3390.3,3389.1,0.635]
[1735635728142,0.05,3390.0,3389.1,0.635]
[1735635728353,0.05,3390.0,3389.1,2.116568]
[1735635729034,0.05,3390.0,3389.1,4.477068]
[1735635729663,0.05,3390.0,3389.2,0.55]
[1735635731523,0.05,3390.0,3389.3,3.0]
[1735635732068,0.05,3390.0,3389.4,0.635]
[1735635732222,0.05,3390.0,3389.5,0.4185]
[1735635732425,0.05,3390.0,3389.4,0.635]
[1735635733135,2.36009,3389.7,3389.0,0.635]
[1735635733667,0.7518,3389.9,3389.0,0.635]
[1735635733970,0.05,3390.0,3389.0,0.635]
[1735635734140,2.40989,3390.0,3389.0,0.635]
[1735635734343,0.240989,3389.9,3389.0,0.635]
[1735635734664,2.36002,3389.8,3389.0,0.635]
[1735635735408,0.05,3390.0,3389.0,2.99556]
[1735635735570,0.05,3390.0,3389.0,0.635]
[1735635736831,0.05,3390.0,3388.8,3.55]
[1735635737035,0.05,3390.0,3389.6,0.635]
[1735635737426,0.05,3390.0,3389.6,2.99514]
[1735635738045,0.05,3390.0,3389.8,0.635]
[1735635738670,0.05,3390.0,3389.5,0.635]
[1735635743309,0.05,3390.0,3389.5,2.99522]
[1735635743503,0.05,3390.0,3389.6,2.659652]
[1735635744005,0.05,3390.0,3389.6,0.299522]
[1735635744322,3.21149,3390.0,3389.2,0.635]
[1735635744482,2.36002,3389.8,3389.2,0.635]
[1735635744681,1.86002,3389.8,3389.2,0.635]
[1735635744909,1.86002,3389.8,3388.8,0.635]
[1735635744910,2.36009,3389.7,3388.8,0.635]
[1735635745092,0.61332168,3389.8,3388.8,0.635]
[1735635745697,2.97335168,3389.8,3388.8,0.635]
[1735635746687,0.61332168,3389.8,3388.8,2.99569]
[1735635747286,2.97335168,3389.8,3388.8,0.635]
[1735635747487,0.64333249,3389.7,3388.8,0.635]
[1735635748125,0.64333249,3389.7,3388.8,2.9957]
[1735635748430,0.8516,3390.0,3388.9,0.55]
[1735635748636,0.05,3390.0,3389.0,0.635]
[1735635749094,0.05,3390.0,3389.1,2.36049]
[1735635750293,0.05,3390.0,3389.2,0.635]
[1735635750698,0.05,3390.0,3389.2,2.99543]
[1735635750995,0.05,3390.0,3389.3,0.299543]
[1735635752427,0.05,3390.0,3389.2,0.635]
[1735635753012,2.35999,3389.9,3389.2,0.635]
[1735635753548,2.36015,3389.7,3389.2,0.635]
[1735635753748,2.36015,3389.7,3389.0,8.82]
[1735635754452,2.86201356,3389.9,3388.9,0.635]
[1735635754656,0.05,3390.0,3388.6,8.82]
[1735635754657,2.86201356,3389.3,3388.6,0.635]
[1735635754960,3.7971,3389.2,3388.2,0.635]
[1735635755128,6.15754,3389.2,3388.2,0.635]
[1735635755531,2.36051,3389.1,3388.2,0.635]
[1735635756073,3.7971,3389.2,3388.2,0.635]
[1735635756366,3.7971,3389.2,3387.9,0.635]
[1735635756367,2.36085,3388.6,3387.9,0.635]
[1735635756531,2.36071,3388.8,3387.9,0.635]
[1735635757363,2.86201356,3389.3,3388.1,0.635]
[1735635757560,2.36022,3389.6,3388.5,2.36091]
[1735635757763,0.62465563,3389.5,3388.5,0.635]
[1735635757964,2.36032,3389.4,3388.5,0.635]
[1735635758559,0.62465563,3389.5,3388.5,0.635]
[1735635759116,0.7971,3389.3,3388.5,0.635]
[1735635759322,2.36071,3388.9,3388.2,0.635]
[1735635759567,2.86201356,3388.8,3387.7,0.635]
[1735635759738,2.36085,3388.6,3387.7,0.635]
[1735635759938,0.7971,3388.7,3387.7,0.635]
[1735635760864,2.36087,3388.6,3387.7,0.635]
[1735635761245,0.7971,3388.7,3387.7,0.635]
[1735635761420,2.36092,3388.5,3387.7,0.635]
[1735635761626,2.86201356,3388.5,3387.7,0.635]
[1735635761820,2.36111,3388.3,3387.7,0.635]
[1735635762139,2.36113,3388.2,3387.7,0.635]
[1735635762828,2.36129,3388.0,3387.0,0.635]
[1735635763025,0.41813859,3388.6,3387.1,1.30327235]
[1735635763026,2.36137,3387.9,3387.1,1.30327235]
[1735635763331,3.0,3388.0,3387.0,0.635]
[1735635763641,3.0,3387.8,3386.6,0.635]
[1735635764453,3.0,3387.3,3386.2,0.635]
[1735635764784,2.36219,3386.7,3385.9,1.21569346]
[1735635764940,3.0,3386.9,3385.9,1.21569346]
[1735635765333,3.0,3386.9,3385.8,0.635]
[1735635765782,2.3622,3386.7,3385.8,0.635]
[1735635766275,5.36205,3386.9,3385.8,0.635]
[1735635766581,1.11334322,3387.2,3385.9,0.42136035]
[1735635766582,2.36191,3387.1,3385.9,0.42136035]
[1735635766786,1.11334322,3387.2,3386.2,0.55]
[1735635766942,0.8079,3387.7,3386.4,0.635]
[1735635767280,5.36157,3387.6,3386.4,0.635]
[1735635768441,3.0,3387.6,3386.4,2.99735]
[1735635768751,3.72329652,3387.6,3386.5,0.299735]
[1735635768954,2.36169,3387.4,3386.4,0.635]
[1735635770954,3.72329652,3387.6,3386.4,0.635]
[1735635771189,6.08486652,3387.6,3386.4,0.635]
[1735635771546,3.42506516,3387.8,3386.6,2.99723]
[1735635771547,5.78649516,3387.8,3386.6,2.99723]
[1735635772159,2.36143,3387.8,3386.6,2.99723]
[1735635772356,0.8079,3388.1,3386.8,0.55]
[1735635772570,2.3611,3388.3,3387.2,0.635]
[1735635772885,2.3611,3388.3,3387.2,0.934689]
[1735635773183,0.8079,3388.5,3387.2,3.296509]
[1735635773393,3.16884,3388.5,3387.2,3.296509]
[1735635774090,0.8079,3388.5,3387.3,0.635]
[1735635774247,2.36135,3387.9,3387.3,0.635]
[1735635774448,3.42506516,3388.3,3387.3,0.635]
[1735635775074,2.36113,3388.2,3387.3,0.635]
[1735635775845,2.3612,3388.1,3387.3,0.635]
[1735635776047,2.93982652,3388.1,3387.3,0.635]
[1735635776969,2.36128,3388.0,3387.3,0.635]
[1735635777170,2.36134,3387.9,3387.3,0.635]
[1735635777633,3.42506516,3387.9,3387.3,0.635]
[1735635777771,2.36163,3387.5,3386.9,0.635]
[1735635778435,2.597793,3387.5,3386.9,0.635]
[1735635779390,3.42506516,3387.9,3386.9,0.635]
[1735635779595,2.36141,3387.8,3386.9,0.635]
[1735635780293,3.42506516,3387.9,3386.9,0.635]
[1735635780669,5.78640516,3387.9,3386.9,0.635]
[1735635781070,2.3615,3387.7,3386.9,0.635]
[1735635781309,0.57865652,3387.6,3386.9,0.635]
[1735635781842,2.36191,3387.1,3386.4,0.635]
[1735635781973,4.23566516,3387.5,3386.4,0.635]
[1735635781974,2.36199,3387.0,3386.4,0.635]
[1735635782335,2.86751011,3386.9,3386.1,0.635]
[1735635782543,2.36218,3386.7,3386.1,0.635]
[1735635783150,3.67811011,3386.9,3386.1,0.635]
[1735635783349,2.36221,3386.7,3386.1,0.635]
[1735635783978,2.86751011,3387.2,3386.1,0.635]
[1735635784176,4.23775341,3387.6,3386.2,1.185]
[1735635784376,0.25,3388.9,3386.3,0.635]
[1735635784377,2.36147,3387.8,3386.3,0.635]
[1735635784634,2.36147,3387.8,3386.5,0.635]
[1735635784980,3.42715341,3388.2,3387.0,0.635]
[1735635785179,2.36095,3388.5,3387.3,0.635]
[1735635785430,2.36095,3388.5,3387.5,0.635]
[1735635785431,2.36094,3388.5,3387.5,0.635]
[1735635785888,3.42715341,3388.6,3387.5,0.635]
[1735635786222,2.361,3388.4,3387.5,0.635]
[1735635786419,2.36113,3388.2,3387.5,0.635]
[1735635786594,2.36111,3388.3,3387.5,0.635]
[1735635787039,0.42377534,3388.5,3387.5,0.635]
[1735635787246,2.36123,3388.1,3387.5,0.635]
[1735635788524,2.36123,3388.1,3387.0,8.82]
[1735635788525,3.42715341,3387.8,3387.0,8.82]
[1735635788818,3.42715341,3387.4,3386.8,0.635]
[1735635789017,2.3618,3387.3,3386.8,0.635]
[1735635789436,2.36183,3387.2,3386.5,0.635]
[1735635789757,2.36204,3386.9,3386.5,0.635]
[1735635790298,2.36211,3386.8,3386.5,0.635]
[1735635790551,2.89103634,3386.8,3385.7,1.185]
[1735635790876,3.42715341,3387.0,3385.7,1.185]
[1735635790877,3.42715341,3387.0,3385.7,0.635]
[1735635790995,3.42715341,3386.6,3385.7,0.635]
[1735635791195,2.36239,3386.4,3385.7,0.635]
[1735635791597,2.36249,3386.3,3385.7,0.635]
[1735635792270,2.36233,3386.5,3385.7,0.635]
[1735635792760,2.36239,3386.4,3385.7,0.635]
[1735635792959,2.94134434,3386.4,3385.7,0.635]
[1735635793662,2.36246,3386.3,3385.7,0.635]
[1735635794216,2.94134434,3386.4,3385.7,0.635]
[1735635794911,2.36248,3386.3,3385.7,0.635]
[1735635795721,0.57895434,3386.4,3385.7,0.635]
[1735635795943,2.36269,3386.0,3385.3,0.635]
[1735635796145,2.36274,3385.9,3385.3,0.635]
[1735635796637,4.21975341,3386.2,3385.3,0.635]
[1735635796800,2.36294,3385.7,3385.2,0.005]
[1735635797005,2.36303,3385.5,3385.2,0.005]
[1735635797915,3.42715341,3385.4,3385.2,0.005]
[1735635798122,2.36315,3385.3,3385.2,0.005]
[1735635799198,5.36315,3385.3,3385.2,0.005]
[1735635801299,3.0,3385.3,3385.2,0.005]
[1735635802243,3.42715341,3385.4,3385.2,0.005]
[1735635804305,2.36288,3385.7,3385.2,0.005]
[1735635804500,3.0,3385.7,3385.2,0.005]
[1735635804701,2.36308,3385.5,3385.2,0.005]
[1735635804942,2.36303,3385.5,3385.2,0.005]
[1735635805143,3.0,3385.7,3385.2,0.005]
[1735635805144,2.36315,3385.3,3385.2,0.005]
[1735635805310,3.42715341,3385.4,3385.2,0.005]
[1735635806051,6.66929175,3385.4,3385.2,0.005]
[1735635806343,2.36315,3385.3,3385.2,0.005]
[1735635806949,3.42715341,3385.4,3385.2,0.005]
[1735635807317,2.36315,3385.3,3385.2,0.005]
[1735635808318,3.15575,3385.3,3385.2,0.005]
[1735635808532,4.05034034,3385.3,3385.2,0.005]
[1735635809004,3.25774034,3385.3,3385.2,0.005]
[1735635810619,3.0,3386.0,3385.2,0.005]
[1735635810620,3.42715341,3385.8,3385.2,0.005]
[1735635810821,3.18147,3386.0,3385.2,0.005]
[1735635810822,2.36267,3386.0,3385.2,0.005]
[1735635811032,5.78968341,3386.2,3385.2,0.005]
[1735635811432,3.42715341,3386.2,3385.2,0.005]
[1735635812448,2.36261,3386.1,3385.2,0.005]
[1735635812612,2.36275,3385.9,3385.2,0.005]
[1735635814753,5.36261,3386.1,3385.2,0.005]
[1735635815054,2.36261,3386.1,3385.2,0.005]
[1735635815613,2.36267,3386.0,3385.2,0.005]
[1735635815851,3.42715341,3385.8,3385.2,0.005]
[1735635816023,2.36298,3385.6,3385.2,0.005]
[1735635816355,2.36315,3385.3,3385.2,0.005]
[1735635816711,5.36315,3385.3,3385.2,0.005]
[1735635817120,2.36315,3385.3,3385.2,0.005]
[1735635817758,3.42715341,3385.4,3385.2,0.005]
[1735635818311,2.36315,3385.3,3385.2,0.005]
[1735635818529,4.34109224,3385.4,3385.2,0.005]
[1735635818716,3.42715341,3385.4,3385.2,0.005]
[1735635819249,2.36315,3385.3,3385.2,0.005]
[1735635819632,3.42715341,3385.4,3385.2,0.005]
[1735635819954,3.8188,3385.7,3385.2,0.005]
[1735635820257,3.0,3385.7,3385.2,0.005]
[1735635820759,5.36291,3385.7,3385.2,0.005]
[1735635821121,2.36294,3385.6,3385.2,0.005]
[1735635821350,2.36313,3385.4,3385.2,0.005]
[1735635822471,3.0,3385.7,3385.2,0.005]
[1735635822472,2.36303,3385.5,3385.2,0.005]
[1735635822824,2.36311,3385.4,3385.2,0.005]
[1735635823124,2.899421,3385.4,3385.2,0.005]
[1735635825632,0.536311,3385.4,3385.2,0.005]
[1735635826062,2.899401,3385.4,3385.2,0.005]
[1735635826272,2.36315,3385.3,3385.2,0.005]
[1735635828383,5.23333854,3385.3,3385.2,0.005]
[1735635828602,5.95368171,3385.3,3385.2,0.005]
[1735635828901,3.0,3385.5,3385.2,0.005]
[1735635829403,2.87018854,3385.6,3385.2,0.005]
[1735635829538,5.23313854,3385.6,3385.2,0.005]
[1735635829735,2.87018854,3385.3,3385.2,0.005]
[1735635831100,3.0,3385.5,3385.2,0.005]
[1735635833579,5.23333854,3385.3,3385.2,0.005]
[1735635834241,5.36303,3385.5,3385.2,0.005]
[1735635834980,3.0,3385.5,3385.2,0.005]
[1735635835350,5.36304,3385.5,3385.2,0.005]
[1735635835964,3.0,3385.5,3385.2,0.005]
[1735635836174,2.36309,3385.4,3385.2,0.005]
[1735635836540,3.66596885,3385.5,3385.2,0.005]
[1735635836739,6.02900885,3385.5,3385.2,0.005]
[1735635839076,2.36289,3385.7,3385.2,0.005]
[1735635839278,3.0,3385.8,3385.3,0.635]
[1735635839653,5.36284,3385.8,3385.3,0.635]
[1735635840575,3.0,3385.8,3385.3,0.635]
[1735635840778,2.36267,3386.0,3385.3,0.635]
[1735635840976,5.23271854,3386.2,3385.3,0.635]
[1735635841181,3.0,3386.1,3385.3,0.93611213]
[1735635841734,3.70708356,3386.5,3385.7,2.36287]
[1735635841903,3.70708356,3386.5,3385.9,0.635]
[1735635842072,2.87018854,3387.0,3386.1,0.635]
[1735635842073,3.70708356,3386.7,3386.1,0.635]
[1735635843274,3.0,3386.9,3386.1,0.635]
[1735635843516,5.23238854,3386.7,3386.1,0.635]
[1735635843816,2.87018854,3386.7,3386.1,0.635]
[1735635843984,3.24905885,3386.9,3386.1,0.635]
[1735635843985,3.0,3386.9,3386.1,0.635]
[1735635844184,5.23236854,3386.7,3386.1,0.635]
[1735635844504,2.88550685,3386.6,3386.1,0.635]
[1735635845027,0.52323685,3386.6,3386.1,0.635]
[1735635845316,3.64368854,3386.7,3386.1,0.635]
[1735635845471,2.87018854,3386.7,3386.1,0.635]
[1735635845681,2.36215,3386.8,3386.1,0.635]
[1735635845682,3.0,3386.9,3386.1,0.635]
[1735635846118,5.36204,3386.9,3386.1,0.635]
[1735635846320,3.0,3386.9,3386.1,0.635]
[1735635846536,3.0,3386.9,3386.2,0.635]
[1735635846688,5.36184,3387.2,3386.3,0.299758]
[1735635847420,2.36165,3387.5,3386.4,0.635]
[1735635847576,2.87018854,3387.6,3386.4,2.36233]
[1735635847778,5.23194854,3387.3,3386.5,0.635]
[1735635848202,2.36204,3386.9,3386.5,0.635]
[1735635848420,2.36204,3386.9,3385.6,10.03569346]
[1735635848421,2.87018854,3386.7,3385.8,0.635]
[1735635848624,0.52322285,3386.8,3385.8,0.635]
[1735635848625,2.87018854,3386.4,3385.8,0.635]
[1735635848937,5.51452289,3386.7,3385.8,0.635]
[1735635849492,5.23242854,3386.7,3385.8,0.635]
[1735635850008,2.87018854,3386.4,3385.8,0.635]
[1735635850193,2.36273,3385.9,3385.3,0.635]
[1735635850795,5.23278854,3386.1,3385.3,0.635]
[1735635851050,2.36254,3386.2,3385.3,0.635]
[1735635851252,2.36276,3385.9,3385.3,0.635]
[1735635851630,3.0,3386.0,3385.3,0.635]
[1735635851932,2.36232,3386.5,3385.3,0.635]
[1735635852134,3.0,3386.6,3385.5,2.363]
[1735635852292,3.0,3386.6,3385.6,0.635]
[1735635852497,3.0,3386.6,3385.7,0.2998]
[1735635852734,5.36226,3386.6,3385.7,0.2998]
[1735635852901,3.0,3386.6,3385.6,0.635]
[1735635853102,2.87018854,3386.4,3385.6,0.635]
[1735635853311,2.36228,3386.6,3385.6,0.635]
[1735635853820,2.36233,3386.5,3385.6,0.635]
[1735635854596,5.36218,3386.7,3385.6,0.635]
[1735635854796,2.36225,3386.6,3385.6,0.635]
[1735635855007,2.36225,3386.6,3385.8,0.635]
[1735635855644,2.36211,3386.8,3385.8,0.635]
[1735635857534,5.36194,3387.1,3385.8,0.635]
[1735635857851,2.36242,3386.4,3385.8,0.635]
[1735635858436,3.7615,3386.7,3385.8,0.635]
[1735635858611,0.71904186,3386.6,3385.8,0.635]
[1735635858953,2.36247,3386.3,3385.8,0.635]
[1735635859458,0.71904186,3386.6,3385.8,0.635]
[1735635859615,2.36253,3386.2,3385.8,0.635]
[1735635860206,2.36257,3386.2,3385.8,0.635]
[1735635861326,2.36274,3385.9,3385.3,0.635]
[1735635861523,3.7615,3386.1,3385.3,0.635]
[1735635861739,3.0,3385.9,3385.2,0.005]
[1735635861940,2.363,3385.6,3385.2,0.005]
[1735635862122,3.0,3385.9,3385.2,0.005]
[1735635862323,2.36315,3385.3,3385.2,0.005]
[1735635864034,3.0,3385.5,3385.2,0.005]
[1735635864239,0.28209435,3386.4,3385.2,0.005]
[1735635864240,7.89750213,3386.5,3385.3,0.635]
[1735635864471,2.3627,3386.0,3385.3,0.635]
[1735635864982,3.0,3386.4,3385.3,0.635]
[1735635865153,2.36239,3386.4,3385.3,0.635]
[1735635865366,2.36226,3386.6,3385.5,0.635]
[1735635865557,2.36226,3386.6,3385.7,0.635]
[1735635865884,3.42891857,3386.9,3385.7,0.635]
[1735635866089,2.36226,3386.6,3385.7,0.635]
[1735635866388,5.36212,3386.8,3385.7,0.635]
[1735635866753,2.36219,3386.7,3385.7,0.635]